[Event "Torneo Nuevo Centro. Jornada 11"]
[Site "Chess.com"]
[Date "2020.08.28"]
[Round "2"]
[White "Martínez Escandell, Alfonso"]
[Black "Yatseta Fernandez, Marc Kazymyr"]
[Result "1-0"]
[WhiteElo "1929"]
[BlackElo "1515"]
[TimeControl "180+2"]
[EndTime "10:46:47 PDT"]
[Termination "Victoria de Alfonso10 por tiempo"]

1. e4 {[%clk 0:03:01.9]} 1... e5 {[%clk 0:02:58.8]} 2. Nf3 {[%clk 0:03:00.9]}
2... Nc6 {[%clk 0:02:59.8]} 3. Bb5 {[%clk 0:03:01.5]} 3... a6 {[%clk 0:02:57.3]}
4. Ba4 {[%clk 0:03:01.5]} 4... d6 {[%clk 0:02:58.1]} 5. c3 {[%clk 0:03:00.2]}
5... Be7 {[%clk 0:02:52.8]} 6. O-O {[%clk 0:02:58.8]} 6... Bd7 {[%clk
0:02:52.7]} 7. d4 {[%clk 0:02:55.6]} 7... b5 {[%clk 0:02:45.4]} 8. Bc2 {[%clk
0:02:55.5]} 8... Nf6 {[%clk 0:02:39.4]} 9. a4 {[%clk 0:02:53.1]} 9... Rb8 {[%clk
0:02:33.7]} 10. axb5 {[%clk 0:02:52.8]} 10... axb5 {[%clk 0:02:34.1]} 11. d5
{[%clk 0:02:50.6]} 11... O-O {[%clk 0:02:24.5]} 12. dxc6 {[%clk 0:02:49.9]}
12... Bxc6 {[%clk 0:02:26.4]} 13. Re1 {[%clk 0:02:50.7]} 13... d5 {[%clk
0:02:11.2]} 14. exd5 {[%clk 0:02:46.9]} 14... Bxd5 {[%clk 0:02:05.5]} 15. Nxe5
{[%clk 0:02:47.2]} 15... Bd6 {[%clk 0:02:03.1]} 16. Ng4 {[%clk 0:02:43.3]} 16...
Re8 {[%clk 0:01:40.8]} 17. Nxf6+ {[%clk 0:02:43.8]} 17... gxf6 {[%clk
0:01:30.3]} 18. Rxe8+ {[%clk 0:02:39.9]} 18... Qxe8 {[%clk 0:01:25.7]} 19. Bh6
{[%clk 0:02:38.5]} 19... Qd7 {[%clk 0:01:07]} 20. Qd3 {[%clk 0:02:23.8]} 20...
f5 {[%clk 0:00:52.9]} 21. Na3 {[%clk 0:02:18.5]} 21... Be4 {[%clk 0:00:50.9]}
22. Qd4 {[%clk 0:02:09.1]} 22... f6 {[%clk 0:00:29.9]} 23. Bxe4 {[%clk
0:01:58.3]} 23... fxe4 {[%clk 0:00:22.7]} 24. Qxe4 {[%clk 0:01:56.8]} 24... Re8
{[%clk 0:00:20.6]} 25. Qd4 {[%clk 0:01:52.7]} 25... Qf5 {[%clk 0:00:19.6]} 26.
Rd1 {[%clk 0:01:43.1]} 26... Qe6 {[%clk 0:00:09.7]} 27. Be3 {[%clk 0:01:40]}
27... Rd8 {[%clk 0:00:06.4]} 28. Kh1 {[%clk 0:01:20.3]} 1

[Event "Torneo Nuevo Centro. Jornada 11"]
[Site "Chess.com"]
[Date "2020.08.28"]
[Round "2"]
[White "Kovacevic, Slobodan"]
[Black "Tormos Beltran, Maite"]
[Result "1-0"]
[WhiteElo "2259"]
[BlackElo "1454"]
[TimeControl "180+2"]
[EndTime "10:46:51 PDT"]
[Termination "Victoria de nikko110 por abandono"]

1. d4 {[%clk 0:02:51.9]} 1... Nf6 {[%clk 0:02:58.4]} 2. Nf3 {[%clk 0:02:50.9]}
2... g6 {[%clk 0:02:59.1]} 3. Bg5 {[%clk 0:02:49.8]} 3... Bg7 {[%clk 0:02:59.4]}
4. Nbd2 {[%clk 0:02:49.9]} 4... O-O {[%clk 0:02:59.9]} 5. c3 {[%clk 0:02:48.8]}
5... Re8 {[%clk 0:03:00.4]} 6. e4 {[%clk 0:02:48]} 6... d6 {[%clk 0:03:01.1]} 7.
Qc2 {[%clk 0:02:46.6]} 7... Nc6 {[%clk 0:02:55.4]} 8. Rd1 {[%clk 0:02:45.1]}
8... e5 {[%clk 0:02:55.8]} 9. dxe5 {[%clk 0:02:43.8]} 9... Nxe5 {[%clk
0:02:49.9]} 10. Nxe5 {[%clk 0:02:43]} 10... Rxe5 {[%clk 0:02:41.5]} 11. Nf3
{[%clk 0:02:40.4]} 11... Re8 {[%clk 0:02:19.1]} 12. Be2 {[%clk 0:02:36.7]} 12...
h6 {[%clk 0:02:17.2]} 13. Bxf6 {[%clk 0:02:35.6]} 13... Bxf6 {[%clk 0:02:15.9]}
14. O-O {[%clk 0:02:35.5]} 14... Bg4 {[%clk 0:02:13.7]} 15. h3 {[%clk
0:02:34.2]} 15... Bxf3 {[%clk 0:02:11.4]} 16. Bxf3 {[%clk 0:02:32.9]} 16... Qe7
{[%clk 0:02:10.8]} 17. g3 {[%clk 0:02:31.8]} 17... Rad8 {[%clk 0:02:10.2]} 18.
Kh2 {[%clk 0:02:30.1]} 18... Bg7 {[%clk 0:02:07.2]} 19. Rd2 {[%clk 0:02:27.7]}
19... Qg5 {[%clk 0:01:55.9]} 20. Rfd1 {[%clk 0:02:24.4]} 20... h5 {[%clk
0:01:48.8]} 21. h4 {[%clk 0:02:22.9]} 21... Qe5 {[%clk 0:01:45.3]} 22. Bg2
{[%clk 0:02:19.3]} 22... c6 {[%clk 0:01:27]} 23. a3 {[%clk 0:02:17]} 23... Bf6
{[%clk 0:01:21.6]} 24. Qb3 {[%clk 0:02:12.8]} 24... Bxh4 {[%clk 0:01:11.1]} 25.
f4 {[%clk 0:02:09.5]} 25... Bxg3+ {[%clk 0:00:41.9]} 26. Kxg3 {[%clk 0:02:08.4]}
26... Qe7 {[%clk 0:00:37.6]} 27. Qc4 {[%clk 0:02:05.6]} 27... d5 {[%clk
0:00:33.4]} 28. exd5 {[%clk 0:02:03.1]} 28... Qe3+ {[%clk 0:00:32.2]} 29. Bf3
{[%clk 0:02:01.8]} 29... cxd5 {[%clk 0:00:26.7]} 30. Rxd5 {[%clk 0:01:59.8]}
30... Rxd5 {[%clk 0:00:22.8]} 31. Qxd5 {[%clk 0:01:58.5]} 31... Re6 {[%clk
0:00:16]} 32. Qd8+ {[%clk 0:01:55.8]} 32... Kh7 {[%clk 0:00:15.6]} 33. Qd4
{[%clk 0:01:53.5]} 33... Qxd4 {[%clk 0:00:14.1]} 34. Rxd4 {[%clk 0:01:51.6]}
34... Rb6 {[%clk 0:00:15.2]} 35. b4 {[%clk 0:01:50]} 35... a6 {[%clk 0:00:14.4]}
36. Rd7 {[%clk 0:01:49]} 36... Kg7 {[%clk 0:00:13.8]} 37. Rxb7 {[%clk
0:01:47.7]} 37... Rxb7 {[%clk 0:00:13.4]} 38. Bxb7 {[%clk 0:01:46.2]} 1

[Event "Torneo Nuevo Centro. Jornada 11"]
[Site "Chess.com"]
[Date "2020.08.28"]
[Round "2"]
[White "Beneyto de Ramon, Guillermo"]
[Black "Perrot, Fabien "]
[Result "1-0"]
[WhiteElo "1639"]
[BlackElo "1150"]
[TimeControl "180+2"]
[EndTime "10:47:11 PDT"]
[Termination "Victoria de GUILLETE por jaque mate"]

1. c4 {[%clk 0:03:01.6]} 1... Nf6 {[%clk 0:02:57.1]} 2. Nc3 {[%clk 0:03:02.1]}
2... e5 {[%clk 0:02:48.9]} 3. g3 {[%clk 0:03:02.2]} 3... Bc5 {[%clk 0:02:49.8]}
4. Bg2 {[%clk 0:03:02.8]} 4... d6 {[%clk 0:02:48.6]} 5. d3 {[%clk 0:03:03.3]}
5... O-O {[%clk 0:02:47.1]} 6. Nf3 {[%clk 0:03:03]} 6... Bb4 {[%clk 0:02:45]} 7.
O-O {[%clk 0:03:01.2]} 7... c6 {[%clk 0:02:44]} 8. Bg5 {[%clk 0:03:00.7]} 8...
b6 {[%clk 0:02:40.4]} 9. Ne4 {[%clk 0:02:59.6]} 9... Nbd7 {[%clk 0:02:22.7]} 10.
a3 {[%clk 0:02:49.6]} 10... Bc5 {[%clk 0:02:20.5]} 11. b4 {[%clk 0:02:49.6]}
11... Bd4 {[%clk 0:02:18.7]} 12. Nxd4 {[%clk 0:02:44.2]} 12... exd4 {[%clk
0:02:19.2]} 13. Nxd6 {[%clk 0:02:45.1]} 13... h6 {[%clk 0:02:03.2]} 14. Bxf6
{[%clk 0:02:38.8]} 14... Nxf6 {[%clk 0:01:56.9]} 15. Ne4 {[%clk 0:02:34.8]}
15... Bf5 {[%clk 0:01:49.7]} 16. Nxf6+ {[%clk 0:02:28.5]} 16... Qxf6 {[%clk
0:01:51.6]} 17. Qd2 {[%clk 0:02:26.9]} 17... Rac8 {[%clk 0:01:43.8]} 18. e3
{[%clk 0:02:21.6]} 18... c5 {[%clk 0:01:40.6]} 19. bxc5 {[%clk 0:02:19.8]} 19...
bxc5 {[%clk 0:01:41.4]} 20. e4 {[%clk 0:02:17.2]} 20... Bg4 {[%clk 0:01:36.4]}
21. h3 {[%clk 0:02:14.5]} 21... Bd7 {[%clk 0:01:37.2]} 22. f4 {[%clk 0:02:13]}
22... Rb8 {[%clk 0:01:36.7]} 23. e5 {[%clk 0:02:11.4]} 23... Qd8 {[%clk
0:01:38.2]} 24. Rab1 {[%clk 0:02:09.2]} 24... h5 {[%clk 0:01:25.5]} 25. Qe2
{[%clk 0:01:58.7]} 25... g6 {[%clk 0:01:25.6]} 26. Qe4 {[%clk 0:01:17.8]} 26...
Bf5 {[%clk 0:01:23.5]} 27. Qe2 {[%clk 0:01:18.1]} 27... Qc7 {[%clk 0:01:18.8]}
28. g4 {[%clk 0:01:10.8]} 28... hxg4 {[%clk 0:01:16.5]} 29. hxg4 {[%clk
0:01:12.6]} 29... Be6 {[%clk 0:01:16.7]} 30. f5 {[%clk 0:01:13.1]} 30... gxf5
{[%clk 0:01:17]} 31. gxf5 {[%clk 0:01:14.9]} 31... Bc8 {[%clk 0:01:14.1]} 32.
Qg4+ {[%clk 0:01:08.3]} 32... Kh7 {[%clk 0:01:12.2]} 33. Qh5+ {[%clk 0:01:06.9]}
33... Kg8 {[%clk 0:01:06.9]} 34. f6 {[%clk 0:01:07.2]} 34... Qd7 {[%clk
0:00:27.6]} 35. Qg5+ {[%clk 0:01:07]} 35... Kh8 {[%clk 0:00:25.5]} 36. Qg7#
{[%clk 0:01:08.1]} 1

[Event "Torneo Nuevo Centro. Jornada 11"]
[Site "Chess.com"]
[Date "2020.08.28"]
[Round "2"]
[White "Serarols Mabras, Bernat"]
[Black "Carbonell Sancho, Marc"]
[Result "1/2-1/2"]
[WhiteElo "2445"]
[BlackElo "1887"]
[TimeControl "180+2"]
[EndTime "10:47:38 PDT"]
[Termination "Partida en tablas por mutuo acuerdo"]

1. d4 {[%clk 0:02:35.5]} 1... Nf6 {[%clk 0:02:32.4]} 2. c4 {[%clk 0:02:36.9]}
2... g6 {[%clk 0:02:33.7]} 3. Nf3 {[%clk 0:02:38]} 3... Bg7 {[%clk 0:02:34.9]}
4. e3 {[%clk 0:02:39.6]} 4... O-O {[%clk 0:02:36.3]} 5. Nc3 {[%clk 0:02:41.2]}
5... d6 {[%clk 0:02:37.7]} 6. Be2 {[%clk 0:02:42.8]} 6... Nc6 {[%clk 0:02:38.6]}
7. O-O {[%clk 0:02:44.4]} 7... Nd7 {[%clk 0:02:39.9]} 8. Qc2 {[%clk 0:02:43.5]}
8... e5 {[%clk 0:02:41.1]} 9. dxe5 {[%clk 0:02:44.8]} 9... Ndxe5 {[%clk
0:02:41.8]} 10. b3 {[%clk 0:02:45.5]} 10... Bf5 {[%clk 0:02:40.9]} 11. Qd2
{[%clk 0:02:38.6]} 11... Rb8 {[%clk 0:02:33.8]} 12. Bb2 {[%clk 0:02:35.8]} 12...
Nxf3+ {[%clk 0:02:35.2]} 13. Bxf3 {[%clk 0:02:36.7]} 13... Ne5 {[%clk
0:02:37.1]} 14. Be2 {[%clk 0:02:32.9]} 14... Be6 {[%clk 0:02:32.9]} 15. Rfd1
{[%clk 0:02:33.1]} 15... f5 {[%clk 0:02:29.2]} 16. Nd5 {[%clk 0:02:33.1]} 16...
Kh8 {[%clk 0:02:27.4]} 17. Nf4 {[%clk 0:02:33.6]} 17... Bg8 {[%clk 0:02:28.1]}
18. Rac1 {[%clk 0:02:34]} 18... Qe7 {[%clk 0:02:21.5]} 19. Nd5 {[%clk
0:02:31.3]} 19... Qf7 {[%clk 0:02:22]} 20. Bc3 {[%clk 0:02:14.2]} 20... Rbd8
{[%clk 0:02:18.5]} 21. Qb2 {[%clk 0:02:14.5]} 21... c6 {[%clk 0:02:19.7]} 22.
Nf4 {[%clk 0:02:13.9]} 22... Qe7 {[%clk 0:02:17.9]} 23. Nd3 {[%clk 0:02:11.8]}
23... Rfe8 {[%clk 0:02:14.1]} 24. c5 {[%clk 0:02:00.4]} 24... dxc5 {[%clk
0:01:46.4]} 25. Nxe5 {[%clk 0:01:58.8]} 25... Rxd1+ {[%clk 0:01:44]} 26. Rxd1
{[%clk 0:02:00.7]} 26... Bxe5 {[%clk 0:01:45.2]} 27. Bxe5+ {[%clk 0:02:01.8]}
27... Qxe5 {[%clk 0:01:46.5]} 28. Qxe5+ {[%clk 0:02:03.7]} 28... Rxe5 {[%clk
0:01:48.1]} 29. Rd7 {[%clk 0:01:57.2]} 29... b5 {[%clk 0:01:48.2]} 30. Rxa7
{[%clk 0:01:57.1]} 30... Rd5 {[%clk 0:01:49.3]} 31. Kf1 {[%clk 0:01:58.2]} 31...
Rd2 {[%clk 0:01:49.6]} 32. Ke1 {[%clk 0:01:59.5]} 32... Rb2 {[%clk 0:01:48.3]}
33. Bf3 {[%clk 0:02:00.6]} 33... c4 {[%clk 0:01:49.1]} 34. bxc4 {[%clk
0:01:38.1]} 34... bxc4 {[%clk 0:01:51]} 35. Rc7 {[%clk 0:01:37.5]} 35... c3
{[%clk 0:01:51.2]} 36. Rxc6 {[%clk 0:01:37.2]} 36... c2 {[%clk 0:01:44.3]} 37.
Kd2 {[%clk 0:01:38.1]} 37... Rxa2 {[%clk 0:01:43.3]} 38. Rxc2 {[%clk 0:01:36.3]}
38... Rxc2+ {[%clk 0:01:25.1]} 39. Kxc2 {[%clk 0:01:37.5]} 39... Kg7 {[%clk
0:01:27]} 40. Kd3 {[%clk 0:01:38.6]} 40... Kf6 {[%clk 0:01:28.9]} 41. Kd4 {[%clk
0:01:38.2]} 41... Bf7 {[%clk 0:01:26]} 42. g4 {[%clk 0:01:38]} 42... Be8 {[%clk
0:01:24.8]} 43. gxf5 {[%clk 0:01:39]} 43... gxf5 {[%clk 0:01:25.1]} 44. Bd5
{[%clk 0:01:37.9]} 44... Ba4 {[%clk 0:01:24.6]} 45. f4 {[%clk 0:01:39]} 45... h6
{[%clk 0:01:24.6]} 46. h4 {[%clk 0:01:29.9]} 46... Bc2 {[%clk 0:01:25.2]} 47.
Bc6 {[%clk 0:01:30.2]} 47... Bb1 {[%clk 0:01:25.5]} 48. Be8 {[%clk 0:01:30.9]}
48... Bc2 {[%clk 0:01:25.4]} 49. Kc5 {[%clk 0:01:28.4]} 49... Ke6 {[%clk
0:01:16.5]} 50. Bh5 {[%clk 0:01:17]} 50... Be4 {[%clk 0:01:16.9]} 51. Kb6 {[%clk
0:01:16.8]} 51... Kd6 {[%clk 0:01:17.1]} 52. Bf7 {[%clk 0:01:17.8]} 52... Bd3
{[%clk 0:01:16.4]} 1/2-1

[Event "Torneo Nuevo Centro. Jornada 11"]
[Site "Chess.com"]
[Date "2020.08.28"]
[Round "2"]
[White "Cayon Pelaez, Pablo"]
[Black "Alvarez Usina, Jordi"]
[Result "1-0"]
[WhiteElo "1755"]
[BlackElo "1266"]
[TimeControl "180+2"]
[EndTime "10:47:42 PDT"]
[Termination "Victoria de Ataquedefinitivo por abandono"]

1. e4 {[%clk 0:03:01.9]} 1... e5 {[%clk 0:02:49.8]} 2. Nf3 {[%clk 0:02:58.1]}
2... Nf6 {[%clk 0:02:44.2]} 3. Nxe5 {[%clk 0:02:57.8]} 3... d6 {[%clk
0:02:39.8]} 4. Nf3 {[%clk 0:02:58.2]} 4... Nxe4 {[%clk 0:02:39]} 5. d4 {[%clk
0:02:53]} 5... Qe7 {[%clk 0:02:38.5]} 6. Be3 {[%clk 0:02:52]} 6... Nc6 {[%clk
0:02:34.3]} 7. Bb5 {[%clk 0:02:50.7]} 7... Bd7 {[%clk 0:02:33.8]} 8. O-O {[%clk
0:02:49.7]} 8... g6 {[%clk 0:02:32.4]} 9. d5 {[%clk 0:02:33.5]} 9... Ne5 {[%clk
0:02:31.1]} 10. Be2 {[%clk 0:02:20.7]} 10... Bg7 {[%clk 0:02:29.3]} 11. c3
{[%clk 0:02:18.7]} 11... O-O {[%clk 0:02:25.4]} 12. Nbd2 {[%clk 0:02:18.2]}
12... Nf6 {[%clk 0:02:22.5]} 13. Re1 {[%clk 0:02:13.4]} 13... Nxd5 {[%clk
0:02:14.2]} 14. Bd4 {[%clk 0:02:10]} 14... c5 {[%clk 0:01:48.6]} 15. Bxe5 {[%clk
0:01:58.6]} 15... Bxe5 {[%clk 0:01:47.8]} 16. Nc4 {[%clk 0:01:45.4]} 16... Nc7
{[%clk 0:01:39]} 17. Ncxe5 {[%clk 0:01:41.4]} 17... dxe5 {[%clk 0:01:36.8]} 18.
Bc4 {[%clk 0:01:32.2]} 18... Be6 {[%clk 0:01:34.6]} 19. Rxe5 {[%clk 0:01:30.1]}
19... Qd8 {[%clk 0:01:31.2]} 20. Bxe6 {[%clk 0:01:12.9]} 20... Qxd1+ {[%clk
0:01:20.6]} 21. Rxd1 {[%clk 0:01:13.4]} 21... Nxe6 {[%clk 0:01:20.9]} 22. Ng5
{[%clk 0:01:08.3]} 22... Nxg5 {[%clk 0:01:14.4]} 23. Rxg5 {[%clk 0:01:08.9]}
23... Rfe8 {[%clk 0:01:15.4]} 24. Rxc5 {[%clk 0:01:09]} 24... Re7 {[%clk
0:01:04.6]} 25. Rcd5 {[%clk 0:00:57]} 25... Kg7 {[%clk 0:00:58.3]} 26. g3 {[%clk
0:00:57]} 26... Rae8 {[%clk 0:00:57.7]} 27. Kg2 {[%clk 0:00:57.8]} 27... Re2
{[%clk 0:00:54.9]} 28. R1d2 {[%clk 0:00:54.1]} 28... R8e7 {[%clk 0:00:51.6]} 29.
Kf3 {[%clk 0:00:49.2]} 29... Re1 {[%clk 0:00:44.4]} 30. Rd7 {[%clk 0:00:46.3]}
30... Rxd7 {[%clk 0:00:25.1]} 31. Rxd7 {[%clk 0:00:46.5]} 31... Ra1 {[%clk
0:00:25.5]} 32. a3 {[%clk 0:00:46.8]} 32... Ra2 {[%clk 0:00:14.8]} 33. Rxb7
{[%clk 0:00:47.5]} 33... a5 {[%clk 0:00:15.1]} 34. Rb5 {[%clk 0:00:47.5]} 34...
a4 {[%clk 0:00:14.7]} 35. Ke3 {[%clk 0:00:45.5]} 35... Kf6 {[%clk 0:00:13.9]}
36. Kd3 {[%clk 0:00:46.5]} 1

[Event "Torneo Nuevo Centro. Jornada 11"]
[Site "Chess.com"]
[Date "2020.08.28"]
[Round "2"]
[White "Alegre Romaguera, Francesc"]
[Black "Macias Pino, Diego"]
[Result "0-1"]
[WhiteElo "1327"]
[BlackElo "2250"]
[TimeControl "180+2"]
[EndTime "10:47:46 PDT"]
[Termination "Victoria de adivinaquiensoy por jaque mate"]

1. e4 {[%clk 0:03:01.7]} 1... c6 {[%clk 0:02:59.8]} 2. Nc3 {[%clk 0:02:59.6]}
2... d5 {[%clk 0:03:01.7]} 3. Nf3 {[%clk 0:03:00]} 3... Nf6 {[%clk 0:02:54.1]}
4. d3 {[%clk 0:01:23.3]} 4... Bg4 {[%clk 0:02:45.3]} 5. Be2 {[%clk 0:01:19.1]}
5... e6 {[%clk 0:02:44.6]} 6. h3 {[%clk 0:01:14.7]} 6... Bh5 {[%clk 0:02:36.1]}
7. Bg5 {[%clk 0:01:03.6]} 7... Be7 {[%clk 0:02:35]} 8. O-O {[%clk 0:00:47.4]}
8... h6 {[%clk 0:02:32.3]} 9. Bh4 {[%clk 0:00:37]} 9... Nbd7 {[%clk 0:02:11.2]}
10. g4 {[%clk 0:00:24.3]} 10... Bg6 {[%clk 0:02:09.8]} 11. Bg3 {[%clk
0:00:20.6]} 11... O-O {[%clk 0:02:00.2]} 12. Ne5 {[%clk 0:00:21.6]} 12... Nxe5
{[%clk 0:01:59.6]} 13. Bxe5 {[%clk 0:00:23.5]} 13... Bd6 {[%clk 0:02:00]} 14.
Bxd6 {[%clk 0:00:22.6]} 14... Qxd6 {[%clk 0:02:01.9]} 15. f4 {[%clk 0:00:23.4]}
15... dxe4 {[%clk 0:02:02.1]} 16. dxe4 {[%clk 0:00:22.4]} 16... Qc5+ {[%clk
0:02:02.7]} 17. Kh1 {[%clk 0:00:19.4]} 17... Nxe4 {[%clk 0:02:03.9]} 18. Nxe4
{[%clk 0:00:15.1]} 18... Bxe4+ {[%clk 0:02:05.8]} 19. Bf3 {[%clk 0:00:16.3]}
19... Qe3 {[%clk 0:02:06]} 20. Bxe4 {[%clk 0:00:16.3]} 20... Qxe4+ {[%clk
0:02:07.9]} 21. Qf3 {[%clk 0:00:16.9]} 21... Qxc2 {[%clk 0:02:08.5]} 22. Rf2
{[%clk 0:00:15.5]} 22... Qc4 {[%clk 0:02:07.9]} 23. f5 {[%clk 0:00:15]} 23...
exf5 {[%clk 0:02:03.1]} 24. Qxf5 {[%clk 0:00:15.7]} 24... Rfe8 {[%clk
0:02:00.1]} 25. Qxf7+ {[%clk 0:00:15.6]} 25... Qxf7 {[%clk 0:02:00.3]} 26. Rxf7
{[%clk 0:00:15.4]} 26... Kxf7 {[%clk 0:02:02.2]} 27. Rf1+ {[%clk 0:00:16.3]}
27... Kg8 {[%clk 0:02:03.5]} 28. Kg2 {[%clk 0:00:16.2]} 28... Re2+ {[%clk
0:02:04.5]} 29. Kg3 {[%clk 0:00:16.9]} 29... Rxb2 {[%clk 0:02:03.1]} 30. Kh4
{[%clk 0:00:16.4]} 30... Rxa2 {[%clk 0:01:59.9]} 31. Kh5 {[%clk 0:00:16.2]}
31... Rf8 {[%clk 0:02:00.2]} 32. Re1 {[%clk 0:00:15.2]} 32... Ra3 {[%clk
0:01:54]} 33. h4 {[%clk 0:00:14.8]} 33... Kh7 {[%clk 0:01:48]} 34. Re6 {[%clk
0:00:12.8]} 34... Rg3 {[%clk 0:01:24.7]} 35. g5 {[%clk 0:00:09.1]} 35... hxg5
{[%clk 0:01:23]} 36. hxg5 {[%clk 0:00:08]} 36... Rf5 {[%clk 0:01:24.5]} 37. Kh4
{[%clk 0:00:07]} 37... Rgxg5 {[%clk 0:01:24]} 38. Rh6+ {[%clk 0:00:03.5]} 38...
gxh6 {[%clk 0:01:24.5]} 39. Kh3 {[%clk 0:00:03.9]} 39... c5 {[%clk 0:01:25.3]}
40. Kh4 {[%clk 0:00:04.6]} 40... c4 {[%clk 0:01:27.2]} 41. Kh3 {[%clk 0:00:06]}
41... c3 {[%clk 0:01:29.1]} 42. Kh4 {[%clk 0:00:07.7]} 42... c2 {[%clk 0:01:31]}
43. Kh3 {[%clk 0:00:09.6]} 43... c1=R {[%clk 0:01:31.2]} 44. Kh2 {[%clk
0:00:10]} 44... Rc3 {[%clk 0:01:28.6]} 45. Kh1 {[%clk 0:00:09.8]} 45... Rh3#
{[%clk 0:01:30]} 0

[Event "Torneo Nuevo Centro. Jornada 11"]
[Site "Chess.com"]
[Date "2020.08.28"]
[Round "2"]
[White "Yuste Valenzuela, Alejandro"]
[Black "Fenollar Jorda, Manolo"]
[Result "0-1"]
[WhiteElo "1874"]
[BlackElo "2466"]
[TimeControl "180+2"]
[EndTime "10:48:19 PDT"]
[Termination "Victoria de Cucudrulu por abandono"]

1. e4 {[%clk 0:03:01.9]} 1... e5 {[%clk 0:02:59.6]} 2. Nf3 {[%clk 0:03:02.9]}
2... Nc6 {[%clk 0:02:46.8]} 3. d4 {[%clk 0:03:03.8]} 3... exd4 {[%clk
0:02:47.7]} 4. Bc4 {[%clk 0:03:04.6]} 4... Bc5 {[%clk 0:02:48.2]} 5. c3 {[%clk
0:03:05.3]} 5... dxc3 {[%clk 0:02:48.4]} 6. Bxf7+ {[%clk 0:03:05.8]} 6... Kxf7
{[%clk 0:02:50.3]} 7. Qd5+ {[%clk 0:03:06.1]} 7... Kf8 {[%clk 0:02:51.4]} 8.
Qxc5+ {[%clk 0:03:07]} 8... d6 {[%clk 0:02:35.9]} 9. Qxc3 {[%clk 0:03:05]} 9...
Nf6 {[%clk 0:02:36.7]} 10. Nbd2 {[%clk 0:02:50.5]} 10... Qe8 {[%clk 0:02:36.6]}
11. O-O {[%clk 0:02:51.1]} 11... Nxe4 {[%clk 0:02:33.6]} 12. Nxe4 {[%clk
0:02:53]} 12... Qxe4 {[%clk 0:02:34.7]} 13. Re1 {[%clk 0:02:46.5]} 13... Qf5
{[%clk 0:02:28]} 14. Bh6 {[%clk 0:02:33.1]} 14... Rg8 {[%clk 0:02:25.7]} 15. Bd2
{[%clk 0:02:19]} 15... Bd7 {[%clk 0:02:22.5]} 16. Qb3 {[%clk 0:02:11.5]} 16...
b6 {[%clk 0:02:23]} 17. Bc3 {[%clk 0:02:08.5]} 17... Re8 {[%clk 0:02:17.6]} 18.
Rxe8+ {[%clk 0:02:05.8]} 18... Bxe8 {[%clk 0:02:19.5]} 19. Re1 {[%clk
0:02:04.5]} 19... Qf7 {[%clk 0:02:10.4]} 20. Qc2 {[%clk 0:01:57.5]} 20... h6
{[%clk 0:01:47.9]} 21. b3 {[%clk 0:01:49.1]} 21... Bd7 {[%clk 0:01:44.7]} 22.
Qe4 {[%clk 0:01:37.9]} 22... Qf5 {[%clk 0:01:30.5]} 23. Qe2 {[%clk 0:01:33.6]}
23... Kf7 {[%clk 0:01:25.9]} 24. Qc4+ {[%clk 0:01:01.1]} 24... d5 {[%clk
0:01:26.2]} 25. Qf1 {[%clk 0:00:45.2]} 25... Re8 {[%clk 0:01:25.4]} 26. Rxe8
{[%clk 0:00:43.5]} 26... Kxe8 {[%clk 0:01:27.1]} 27. Qe1+ {[%clk 0:00:43.4]}
27... Kf7 {[%clk 0:01:26.2]} 28. h3 {[%clk 0:00:31.5]} 28... Qe4 {[%clk
0:00:57.1]} 29. Qxe4 {[%clk 0:00:29.7]} 29... dxe4 {[%clk 0:00:59]} 30. Ne5+
{[%clk 0:00:30.8]} 30... Nxe5 {[%clk 0:00:55.5]} 31. Bxe5 {[%clk 0:00:32.7]}
31... c6 {[%clk 0:00:56.5]} 32. Kf1 {[%clk 0:00:32.3]} 32... g6 {[%clk
0:00:56.9]} 33. Ke2 {[%clk 0:00:32.4]} 33... Ke6 {[%clk 0:00:58.3]} 34. Bb2
{[%clk 0:00:33.2]} 34... Kd5 {[%clk 0:00:59.4]} 35. Ke3 {[%clk 0:00:33.6]} 35...
c5 {[%clk 0:00:58.1]} 36. Bg7 {[%clk 0:00:27.5]} 36... h5 {[%clk 0:00:58.5]} 37.
Bb2 {[%clk 0:00:28]} 37... b5 {[%clk 0:00:59]} 38. h4 {[%clk 0:00:25.4]} 38...
a5 {[%clk 0:00:59.6]} 39. g3 {[%clk 0:00:25.2]} 39... b4 {[%clk 0:01:00.5]} 40.
Kf4 {[%clk 0:00:21.2]} 40... Bf5 {[%clk 0:00:59.3]} 41. Ke3 {[%clk 0:00:21.1]}
41... Be6 {[%clk 0:00:56.5]} 42. f3 {[%clk 0:00:18.9]} 42... exf3 {[%clk
0:00:56.6]} 43. Kxf3 {[%clk 0:00:20.8]} 43... c4 {[%clk 0:00:56.6]} 44. bxc4+
{[%clk 0:00:21.3]} 44... Kxc4 {[%clk 0:00:58.5]} 45. Ke3 {[%clk 0:00:21.7]}
45... a4 {[%clk 0:00:54.7]} 46. a3 {[%clk 0:00:20.5]} 46... Kb3 {[%clk
0:00:53.8]} 47. Bc1 {[%clk 0:00:14.8]} 47... bxa3 {[%clk 0:00:54.7]} 0